[Event "Late-Titled-Tuesday-Blitz-March-26-2024"]
[Site "Chess.com"]
[Date "2024.03.26"]
[Round "3"]
[White "andrzej"]
[Black "jcibarra"]
[Result "0-1"]
[WhiteElo "2527"]
[BlackElo "2985"]
[TimeControl "180+1"]
[EndTime "14:29:32 PDT"]
[Termination "jcibarra won on time"]

1. e4 {[%clk 0:03:00.9]} 1... c5 {[%clk 0:02:59.9]} 2. Nf3 {[%clk 0:03:01]} 2...
e6 {[%clk 0:03:00.6]} 3. d4 {[%clk 0:03:01.4]} 3... cxd4 {[%clk 0:03:01.5]} 4.
Nxd4 {[%clk 0:03:02]} 4... Bc5 {[%clk 0:03:02.1]} 5. Nb3 {[%clk 0:02:59.5]} 5...
Bb6 {[%clk 0:03:02.7]} 6. Qg4 {[%clk 0:02:59.2]} 6... Nf6 {[%clk 0:03:03]} 7.
Qf3 {[%clk 0:02:47.4]} 7... Nc6 {[%clk 0:03:02.2]} 8. Nc3 {[%clk 0:02:44.9]}
8... a6 {[%clk 0:03:01.1]} 9. Be3 {[%clk 0:02:43.5]} 9... O-O {[%clk 0:02:58.4]}
10. O-O-O {[%clk 0:02:41.4]} 10... Bxe3+ {[%clk 0:02:43.4]} 11. Qxe3 {[%clk
0:02:40.4]} 11... b5 {[%clk 0:02:44.1]} 12. Be2 {[%clk 0:02:31.8]} 12... Qc7
{[%clk 0:02:41.8]} 13. Kb1 {[%clk 0:02:31.2]} 13... d6 {[%clk 0:02:40.5]} 14. g4
{[%clk 0:02:28.7]} 14... Ne5 {[%clk 0:02:34.8]} 15. g5 {[%clk 0:02:23.9]} 15...
Nfd7 {[%clk 0:02:35.3]} 16. f4 {[%clk 0:02:19.2]} 16... Nc4 {[%clk 0:02:35.9]}
17. Qg3 {[%clk 0:02:18.3]} 17... Bb7 {[%clk 0:02:32.6]} 18. Bxc4 {[%clk
0:02:02.8]} 18... bxc4 {[%clk 0:02:27.4]} 19. Nd4 {[%clk 0:01:59.8]} 19... Nc5
{[%clk 0:02:28]} 20. Rhe1 {[%clk 0:01:58.2]} 20... Rab8 {[%clk 0:02:27]} 21. Ka1
{[%clk 0:01:57.6]} 21... Rfe8 {[%clk 0:02:24.6]} 22. h4 {[%clk 0:01:57.1]} 22...
Qb6 {[%clk 0:02:22.4]} 23. Rb1 {[%clk 0:01:40.5]} 23... g6 {[%clk 0:02:09.9]}
24. h5 {[%clk 0:01:37]} 24... e5 {[%clk 0:02:08.2]} 25. Nf3 {[%clk 0:01:14.8]}
25... exf4 {[%clk 0:01:52.4]} 26. Qxf4 {[%clk 0:01:14.6]} 26... Ne6 {[%clk
0:01:53.1]} 27. Qf6 {[%clk 0:01:10.1]} 27... Qd8 {[%clk 0:01:52.8]} 28. Qxd8
{[%clk 0:01:04.5]} 28... Rbxd8 {[%clk 0:01:52.1]} 29. Rbd1 {[%clk 0:01:02.6]}
29... gxh5 {[%clk 0:01:41.8]} 30. Rh1 {[%clk 0:00:40.6]} 30... Nf4 {[%clk
0:01:39.9]} 31. Rh4 {[%clk 0:00:36.6]} 31... Ng6 {[%clk 0:01:40]} 32. Rxh5
{[%clk 0:00:36.1]} 32... Bxe4 {[%clk 0:01:40.5]} 33. Nd4 {[%clk 0:00:28.9]}
33... d5 {[%clk 0:01:25.6]} 34. a3 {[%clk 0:00:13]} 34... Nf4 {[%clk 0:01:19.2]}
35. Rh4 {[%clk 0:00:09.6]} 35... Ng2 {[%clk 0:01:17.7]} 36. Rh2 {[%clk 0:00:07]}
36... Ne3 {[%clk 0:01:07.5]} 37. Rg1 {[%clk 0:00:06.1]} 37... Bg6 {[%clk
0:00:53]} 38. Kb1 {[%clk 0:00:05.4]} 38... Nf5 {[%clk 0:00:52.5]} 39. Nc6 {[%clk
0:00:04.8]} 39... Rd6 {[%clk 0:00:48.3]} 40. Na5 {[%clk 0:00:02.3]} 40... Ne3
{[%clk 0:00:42.6]} 0-1

[Event "Late-Titled-Tuesday-Blitz-March-26-2024"]
[Site "Chess.com"]
[Date "2024.03.26"]
[Round "3"]
[White "Mazetovic"]
[Black "VladimirBugayev"]
[Result "1-0"]
[WhiteElo "2607"]
[BlackElo "2395"]
[TimeControl "180+1"]
[EndTime "14:29:33 PDT"]
[Termination "Mazetovic won by checkmate"]

1. c4 {[%clk 0:03:00.9]} 1... c5 {[%clk 0:02:59.6]} 2. Nc3 {[%clk 0:03:00.4]}
2... Nc6 {[%clk 0:02:59.2]} 3. g3 {[%clk 0:02:54.3]} 3... g6 {[%clk 0:02:59.3]}
4. Bg2 {[%clk 0:02:54.4]} 4... Bg7 {[%clk 0:02:59.8]} 5. h4 {[%clk 0:02:50.8]}
5... h5 {[%clk 0:02:57.2]} 6. Nf3 {[%clk 0:02:50]} 6... d6 {[%clk 0:02:57.1]} 7.
Ng5 {[%clk 0:02:49.6]} 7... e5 {[%clk 0:02:53.5]} 8. d3 {[%clk 0:02:48.1]} 8...
Nh6 {[%clk 0:02:50.2]} 9. Nd5 {[%clk 0:02:45.6]} 9... O-O {[%clk 0:02:46.2]} 10.
Ne4 {[%clk 0:02:36]} 10... Bf5 {[%clk 0:02:41.5]} 11. Bg5 {[%clk 0:02:29.5]}
11... f6 {[%clk 0:02:12.2]} 12. Nexf6+ {[%clk 0:02:27.6]} 12... Bxf6 {[%clk
0:02:12]} 13. Bxh6 {[%clk 0:02:27.2]} 13... Rf7 {[%clk 0:02:03.4]} 14. Qd2
{[%clk 0:02:07.4]} 14... Bh8 {[%clk 0:01:57.5]} 15. Bg5 {[%clk 0:02:05.7]} 15...
Qd7 {[%clk 0:01:54.9]} 16. e3 {[%clk 0:01:52.8]} 16... Rb8 {[%clk 0:01:52.7]}
17. a3 {[%clk 0:01:47.8]} 17... b5 {[%clk 0:01:51.3]} 18. b4 {[%clk 0:01:45.1]}
18... bxc4 {[%clk 0:01:46.1]} 19. dxc4 {[%clk 0:01:44.8]} 19... e4 {[%clk
0:01:40]} 20. Rb1 {[%clk 0:01:34]} 20... Ne5 {[%clk 0:01:39.8]} 21. Bf4 {[%clk
0:01:20.2]} 21... Nd3+ {[%clk 0:01:38.8]} 22. Kf1 {[%clk 0:01:16]} 22... a5
{[%clk 0:01:33.4]} 23. b5 {[%clk 0:01:15.2]} 23... a4 {[%clk 0:01:30.8]} 24. Kg1
{[%clk 0:01:09.2]} 24... Be5 {[%clk 0:01:25.5]} 25. Kh2 {[%clk 0:01:05.8]} 25...
Bxf4 {[%clk 0:01:09.4]} 26. exf4 {[%clk 0:01:04.3]} 26... Re8 {[%clk 0:01:03]}
27. Ne3 {[%clk 0:01:03]} 27... Bg4 {[%clk 0:00:56.4]} 28. b6 {[%clk 0:00:50.5]}
28... Qb7 {[%clk 0:00:47]} 29. Nxg4 {[%clk 0:00:45.8]} 29... hxg4 {[%clk
0:00:45]} 30. Qxd3 {[%clk 0:00:44.8]} 30... exd3 {[%clk 0:00:44.9]} 31. Bxb7
{[%clk 0:00:44.8]} 31... Rxb7 {[%clk 0:00:45.8]} 32. Rhd1 {[%clk 0:00:44.5]}
32... Re2 {[%clk 0:00:43]} 33. Kg2 {[%clk 0:00:41.6]} 33... d5 {[%clk
0:00:30.5]} 34. Rxd3 {[%clk 0:00:33.7]} 34... d4 {[%clk 0:00:30.1]} 35. Rb5
{[%clk 0:00:18.9]} 35... Ra2 {[%clk 0:00:24.1]} 36. f5 {[%clk 0:00:19]} 36...
gxf5 {[%clk 0:00:21.5]} 37. Rxc5 {[%clk 0:00:19.2]} 37... Rxb6 {[%clk 0:00:21]}
38. Rxf5 {[%clk 0:00:18.7]} 38... Rb3 {[%clk 0:00:18.2]} 39. Rxd4 {[%clk
0:00:19]} 39... Raxa3 {[%clk 0:00:17.6]} 40. Rxg4+ {[%clk 0:00:19.1]} 40... Kh7
{[%clk 0:00:15.8]} 41. Rh5# {[%clk 0:00:20]} 1-0

[Event "Late-Titled-Tuesday-Blitz-March-26-2024"]
[Site "Chess.com"]
[Date "2024.03.26"]
[Round "3"]
[White "NikoTheodorou"]
[Black "TorFredrikKaasen"]
[Result "1-0"]
[WhiteElo "3116"]
[BlackElo "2833"]
[TimeControl "180+1"]
[EndTime "14:29:37 PDT"]
[Termination "NikoTheodorou won by resignation"]

1. Nf3 {[%clk 0:03:00.9]} 1... d5 {[%clk 0:02:59.4]} 2. b3 {[%clk 0:03:01.6]}
2... Bf5 {[%clk 0:02:58.2]} 3. Bb2 {[%clk 0:03:01.9]} 3... e6 {[%clk 0:02:58.3]}
4. g3 {[%clk 0:03:02.7]} 4... h6 {[%clk 0:02:58.5]} 5. Bg2 {[%clk 0:03:03.5]}
5... Nf6 {[%clk 0:02:59.1]} 6. d3 {[%clk 0:03:04.3]} 6... Be7 {[%clk 0:02:59.6]}
7. O-O {[%clk 0:03:05.1]} 7... O-O {[%clk 0:02:59.7]} 8. Nc3 {[%clk 0:03:06]}
8... Bh7 {[%clk 0:02:58.9]} 9. e4 {[%clk 0:03:05.9]} 9... c6 {[%clk 0:02:58.3]}
10. Qe2 {[%clk 0:03:05.2]} 10... a5 {[%clk 0:02:58]} 11. Nd2 {[%clk 0:03:04.7]}
11... Na6 {[%clk 0:02:57.4]} 12. a3 {[%clk 0:02:58]} 12... b5 {[%clk 0:02:57.3]}
13. Kh1 {[%clk 0:02:58]} 13... b4 {[%clk 0:02:47.3]} 14. axb4 {[%clk 0:02:52.8]}
14... axb4 {[%clk 0:02:45.9]} 15. Na4 {[%clk 0:02:52.8]} 15... Nd7 {[%clk
0:02:35.6]} 16. f4 {[%clk 0:02:52.9]} 16... Nac5 {[%clk 0:02:33.6]} 17. Nxc5
{[%clk 0:02:53.2]} 17... Nxc5 {[%clk 0:02:33.4]} 18. exd5 {[%clk 0:02:44.6]}
18... Rxa1 {[%clk 0:02:27.8]} 19. Rxa1 {[%clk 0:02:41.7]} 19... exd5 {[%clk
0:02:28.3]} 20. Nf3 {[%clk 0:02:41.9]} 20... Bf6 {[%clk 0:02:27.3]} 21. Bxf6
{[%clk 0:02:41.3]} 21... Qxf6 {[%clk 0:02:27.1]} 22. Qe5 {[%clk 0:02:41.9]}
22... Ne6 {[%clk 0:02:01.2]} 23. Qxf6 {[%clk 0:01:53.4]} 23... gxf6 {[%clk
0:02:02.1]} 24. Kg1 {[%clk 0:01:53.5]} 24... c5 {[%clk 0:01:58.2]} 25. Ra5
{[%clk 0:01:47.6]} 25... Rc8 {[%clk 0:01:50.4]} 26. Bf1 {[%clk 0:01:32.2]} 26...
Bf5 {[%clk 0:01:38.3]} 27. h3 {[%clk 0:01:29.9]} 27... Kf8 {[%clk 0:01:20.8]}
28. g4 {[%clk 0:01:27.2]} 28... Bh7 {[%clk 0:01:19.5]} 29. f5 {[%clk 0:01:27.7]}
29... Nf4 {[%clk 0:01:03.9]} 30. Kf2 {[%clk 0:01:25.3]} 30... d4 {[%clk
0:01:01.7]} 31. Nd2 {[%clk 0:01:09.6]} 31... Nd5 {[%clk 0:00:51]} 32. Ne4 {[%clk
0:01:09.2]} 32... Ne3 {[%clk 0:00:50.1]} 33. Nxf6 {[%clk 0:00:39.5]} 33... Kg7
{[%clk 0:00:48.1]} 34. Ra6 {[%clk 0:00:40.1]} 34... Nxc2 {[%clk 0:00:20.8]} 35.
Nh5+ {[%clk 0:00:39.9]} 35... Kf8 {[%clk 0:00:21.1]} 36. Rxh6 {[%clk 0:00:40.7]}
36... Bg8 {[%clk 0:00:21.1]} 37. Bg2 {[%clk 0:00:34.7]} 37... c4 {[%clk
0:00:19.1]} 38. dxc4 {[%clk 0:00:33.6]} 38... d3 {[%clk 0:00:17.4]} 39. Rd6
{[%clk 0:00:33.3]} 39... f6 {[%clk 0:00:09.8]} 40. Rxd3 {[%clk 0:00:28.5]} 40...
Ke7 {[%clk 0:00:10.2]} 41. Nf4 {[%clk 0:00:27.2]} 41... Ra8 {[%clk 0:00:08.6]}
42. Bxa8 {[%clk 0:00:26.4]} 1-0

[Event "Late-Titled-Tuesday-Blitz-March-26-2024"]
[Site "Chess.com"]
[Date "2024.03.26"]
[Round "3"]
[White "prime-morty"]
[Black "GAO"]
[Result "1-0"]
[WhiteElo "2569"]
[BlackElo "2323"]
[TimeControl "180+1"]
[EndTime "14:29:40 PDT"]
[Termination "prime-morty won by resignation"]

1. c4 {[%clk 0:03:00.9]} 1... e5 {[%clk 0:02:59]} 2. Nc3 {[%clk 0:03:01.3]} 2...
Bb4 {[%clk 0:02:59.4]} 3. Nf3 {[%clk 0:03:01.7]} 3... Bxc3 {[%clk 0:02:57.3]} 4.
bxc3 {[%clk 0:03:02.1]} 4... d6 {[%clk 0:02:58.2]} 5. e4 {[%clk 0:03:02.3]} 5...
f5 {[%clk 0:02:56.8]} 6. exf5 {[%clk 0:03:00.2]} 6... Bxf5 {[%clk 0:02:56.4]} 7.
d3 {[%clk 0:02:58.1]} 7... Nf6 {[%clk 0:02:55.9]} 8. Nh4 {[%clk 0:02:53.6]} 8...
Be6 {[%clk 0:02:52.7]} 9. Qf3 {[%clk 0:02:52]} 9... O-O {[%clk 0:02:52.5]} 10.
Qxb7 {[%clk 0:02:50.7]} 10... Nbd7 {[%clk 0:02:50.8]} 11. Be2 {[%clk 0:02:47.8]}
11... Ng4 {[%clk 0:02:46]} 12. Nf3 {[%clk 0:02:47.2]} 12... Nc5 {[%clk
0:02:44.8]} 13. Qb1 {[%clk 0:02:42.3]} 13... Rb8 {[%clk 0:02:40.8]} 14. Qc2
{[%clk 0:02:42.4]} 14... Bf5 {[%clk 0:02:18.2]} 15. h3 {[%clk 0:02:41.1]} 15...
e4 {[%clk 0:02:16.6]} 16. hxg4 {[%clk 0:02:40.8]} 16... exd3 {[%clk 0:02:13.5]}
17. Qd2 {[%clk 0:02:38.8]} 17... Re8 {[%clk 0:01:54.8]} 18. Nd4 {[%clk
0:02:31.5]} 18... Bg6 {[%clk 0:01:45.2]} 19. f4 {[%clk 0:02:20]} 19... dxe2
{[%clk 0:01:23.5]} 20. f5 {[%clk 0:02:17.1]} 20... Ne4 {[%clk 0:01:11.3]} 21.
Qd3 {[%clk 0:02:06.9]} 21... Nc5 {[%clk 0:01:07.9]} 22. Qh3 {[%clk 0:02:00.9]}
22... Qf6 {[%clk 0:00:30.7]} 23. g5 {[%clk 0:01:48.7]} 23... Qf7 {[%clk
0:00:18.1]} 24. Bd2 {[%clk 0:01:07.8]} 24... Qxc4 {[%clk 0:00:17.6]} 25. Kf2
{[%clk 0:00:44.8]} 25... Ne4+ {[%clk 0:00:12.6]} 26. Kg1 {[%clk 0:00:42.8]}
26... Nxd2 {[%clk 0:00:10.7]} 27. fxg6 {[%clk 0:00:42.4]} 27... h6 {[%clk
0:00:09.3]} 28. Re1 {[%clk 0:00:28.8]} 28... Rb1 {[%clk 0:00:08.4]} 29. Kh2
{[%clk 0:00:27.6]} 29... Rxe1 {[%clk 0:00:08.2]} 30. Rxe1 {[%clk 0:00:27.8]}
30... Qxc3 {[%clk 0:00:08.8]} 31. Qxc3 {[%clk 0:00:27.1]} 31... Nf1+ {[%clk
0:00:08.2]} 32. Kg1 {[%clk 0:00:26]} 32... hxg5 {[%clk 0:00:07.3]} 33. Qb3+
{[%clk 0:00:24.4]} 33... Kh8 {[%clk 0:00:07.4]} 34. Qh3+ {[%clk 0:00:24.6]}
34... Kg8 {[%clk 0:00:07.7]} 35. Qh7+ {[%clk 0:00:24.9]} 35... Kf8 {[%clk
0:00:08.6]} 36. Qh8+ {[%clk 0:00:25.3]} 36... Ke7 {[%clk 0:00:08.5]} 37. Qxg7+
{[%clk 0:00:25.9]} 37... Kd8 {[%clk 0:00:08.7]} 38. Qf6+ {[%clk 0:00:26.4]}
38... Kc8 {[%clk 0:00:09.1]} 39. g7 {[%clk 0:00:25.8]} 39... Ng3 {[%clk
0:00:06.7]} 40. Qf8 {[%clk 0:00:25.3]} 40... Kd7 {[%clk 0:00:06.6]} 41. Qxe8+
{[%clk 0:00:25.1]} 41... Kxe8 {[%clk 0:00:07.5]} 42. g8=Q+ {[%clk 0:00:25.8]}
42... Kd7 {[%clk 0:00:08.4]} 43. Qf7+ {[%clk 0:00:25.9]} 1-0

[Event "Late-Titled-Tuesday-Blitz-March-26-2024"]
[Site "Chess.com"]
[Date "2024.03.26"]
[Round "3"]
[White "Chempiblinka"]
[Black "Slovak_fighter2000"]
[Result "0-1"]
[WhiteElo "2386"]
[BlackElo "2597"]
[TimeControl "180+1"]
[EndTime "14:29:41 PDT"]
[Termination "Slovak_fighter2000 won on time"]

1. Nf3 {[%clk 0:02:59.2]} 1... Nf6 {[%clk 0:02:56.4]} 2. g3 {[%clk 0:02:59.4]}
2... b5 {[%clk 0:02:56.7]} 3. Bg2 {[%clk 0:02:58.7]} 3... Bb7 {[%clk 0:02:57.1]}
4. O-O {[%clk 0:02:58.7]} 4... e6 {[%clk 0:02:57.2]} 5. d4 {[%clk 0:02:55.3]}
5... c5 {[%clk 0:02:57.5]} 6. c3 {[%clk 0:02:53.5]} 6... Qb6 {[%clk 0:02:56.5]}
7. Bg5 {[%clk 0:02:45.3]} 7... Be7 {[%clk 0:02:56.3]} 8. Nbd2 {[%clk 0:02:45.1]}
8... d6 {[%clk 0:02:47.2]} 9. Re1 {[%clk 0:02:36.2]} 9... h6 {[%clk 0:02:42.9]}
10. Bxf6 {[%clk 0:02:35.5]} 10... Bxf6 {[%clk 0:02:43.8]} 11. e3 {[%clk
0:02:03.3]} 11... Nd7 {[%clk 0:02:37]} 12. Qe2 {[%clk 0:02:03.5]} 12... O-O
{[%clk 0:02:36.1]} 13. e4 {[%clk 0:02:03.4]} 13... cxd4 {[%clk 0:02:34.8]} 14.
cxd4 {[%clk 0:02:03.7]} 14... Bxd4 {[%clk 0:02:35.2]} 15. Nxd4 {[%clk
0:02:00.9]} 15... Qxd4 {[%clk 0:02:36.1]} 16. Qxb5 {[%clk 0:01:59.7]} 16... Nb6
{[%clk 0:02:33.2]} 17. Rad1 {[%clk 0:01:53.5]} 17... Rfd8 {[%clk 0:02:01.4]} 18.
Nf3 {[%clk 0:01:09.9]} 18... Qf6 {[%clk 0:01:44.1]} 19. e5 {[%clk 0:01:01.2]}
19... dxe5 {[%clk 0:01:41.7]} 20. Qxe5 {[%clk 0:00:50.1]} 20... Qxe5 {[%clk
0:01:36.2]} 21. Nxe5 {[%clk 0:00:47.5]} 21... Bxg2 {[%clk 0:01:36.1]} 22. Kxg2
{[%clk 0:00:48.2]} 22... Rxd1 {[%clk 0:01:36.2]} 23. Rxd1 {[%clk 0:00:48.3]}
23... Rc8 {[%clk 0:01:36.3]} 24. Rd2 {[%clk 0:00:37.2]} 24... Nd5 {[%clk
0:01:34.5]} 25. Nf3 {[%clk 0:00:27.9]} 25... Rc1 {[%clk 0:01:30.1]} 26. Nd4
{[%clk 0:00:26.4]} 26... Ra1 {[%clk 0:01:26.7]} 27. a3 {[%clk 0:00:25.8]} 27...
Rb1 {[%clk 0:01:21.8]} 28. Rc2 {[%clk 0:00:24.9]} 28... g5 {[%clk 0:01:17]} 29.
Nc6 {[%clk 0:00:24.3]} 29... a6 {[%clk 0:01:13.6]} 30. Nb8 {[%clk 0:00:23.9]}
30... a5 {[%clk 0:01:13.5]} 31. Nc6 {[%clk 0:00:22.8]} 31... a4 {[%clk 0:01:14]}
32. Ne5 {[%clk 0:00:15.9]} 32... Kg7 {[%clk 0:01:10]} 33. Nd3 {[%clk 0:00:16]}
33... g4 {[%clk 0:00:59.8]} 34. Nc5 {[%clk 0:00:15.8]} 34... h5 {[%clk
0:00:58.2]} 35. Nxa4 {[%clk 0:00:15.4]} 35... Nf6 {[%clk 0:00:57]} 36. Nc5
{[%clk 0:00:12.6]} 36... Nh7 {[%clk 0:00:55.4]} 37. a4 {[%clk 0:00:11.9]} 37...
Ng5 {[%clk 0:00:55.8]} 38. f4 {[%clk 0:00:05.9]} 38... Nh3 {[%clk 0:00:51.3]}
0-1

[Event "Late-Titled-Tuesday-Blitz-March-26-2024"]
[Site "Chess.com"]
[Date "2024.03.26"]
[Round "3"]
[White "CarlosjPineror"]
[Black "esrosenberg"]
[Result "1-0"]
[WhiteElo "2727"]
[BlackElo "2489"]
[TimeControl "180+1"]
[EndTime "14:29:42 PDT"]
[Termination "CarlosjPineror won by resignation"]

1. e4 {[%clk 0:03:00.9]} 1... g6 {[%clk 0:02:59.6]} 2. d4 {[%clk 0:03:00.7]}
2... Bg7 {[%clk 0:03:00.1]} 3. Nc3 {[%clk 0:03:01.1]} 3... d5 {[%clk 0:02:59.8]}
4. e5 {[%clk 0:02:54.1]} 4... Nh6 {[%clk 0:02:53.6]} 5. h3 {[%clk 0:02:53.1]}
5... O-O {[%clk 0:02:51]} 6. Nf3 {[%clk 0:02:32.7]} 6... f6 {[%clk 0:02:31.3]}
7. exf6 {[%clk 0:02:28.1]} 7... exf6 {[%clk 0:02:32.2]} 8. Be2 {[%clk
0:02:07.9]} 8... c6 {[%clk 0:02:29.5]} 9. O-O {[%clk 0:01:38.6]} 9... Nf5 {[%clk
0:02:25.7]} 10. Bf4 {[%clk 0:01:37.4]} 10... Na6 {[%clk 0:02:23]} 11. Qd2 {[%clk
0:01:35.9]} 11... Nc7 {[%clk 0:02:22.1]} 12. Rfe1 {[%clk 0:01:35.9]} 12... Ne6
{[%clk 0:02:20.4]} 13. Bh2 {[%clk 0:01:35.5]} 13... Re8 {[%clk 0:02:18.1]} 14.
Rad1 {[%clk 0:01:31.1]} 14... Bd7 {[%clk 0:02:17.9]} 15. g4 {[%clk 0:01:23.5]}
15... Ne7 {[%clk 0:02:06.7]} 16. Bd3 {[%clk 0:01:21.3]} 16... Qa5 {[%clk
0:01:50.8]} 17. a3 {[%clk 0:01:19.7]} 17... Kf7 {[%clk 0:01:34.1]} 18. Ne2
{[%clk 0:01:15.3]} 18... Qxd2 {[%clk 0:01:32.2]} 19. Rxd2 {[%clk 0:01:16.2]}
19... Bh6 {[%clk 0:01:31.6]} 20. Rdd1 {[%clk 0:01:15.5]} 20... Bf8 {[%clk
0:01:20.2]} 21. Nf4 {[%clk 0:01:13.9]} 21... Nxf4 {[%clk 0:01:18.8]} 22. Bxf4
{[%clk 0:01:14.8]} 22... Nc8 {[%clk 0:01:14.7]} 23. Rxe8 {[%clk 0:01:07.7]}
23... Bxe8 {[%clk 0:01:14]} 24. Kg2 {[%clk 0:01:08.6]} 24... Bd6 {[%clk
0:01:13.5]} 25. Bg3 {[%clk 0:01:05.6]} 25... Bxg3 {[%clk 0:01:12.9]} 26. fxg3
{[%clk 0:01:04.8]} 26... Nd6 {[%clk 0:01:13.6]} 27. Re1 {[%clk 0:01:04.9]} 27...
Bd7 {[%clk 0:01:13.3]} 28. c3 {[%clk 0:01:04.2]} 28... Re8 {[%clk 0:01:12.6]}
29. Rxe8 {[%clk 0:01:04.5]} 29... Kxe8 {[%clk 0:01:10.1]} 30. Kf2 {[%clk
0:01:03.7]} 30... Ke7 {[%clk 0:01:09]} 31. Ke3 {[%clk 0:01:03.8]} 31... b6
{[%clk 0:01:03.1]} 32. Kf4 {[%clk 0:01:00.9]} 32... c5 {[%clk 0:00:55.7]} 33. h4
{[%clk 0:00:59.2]} 33... c4 {[%clk 0:00:48.6]} 34. Bc2 {[%clk 0:00:57.8]} 34...
b5 {[%clk 0:00:47.8]} 35. g5 {[%clk 0:00:55.2]} 35... a5 {[%clk 0:00:40.9]} 36.
g4 {[%clk 0:00:48.3]} 36... Ne8 {[%clk 0:00:33.4]} 37. gxf6+ {[%clk 0:00:36.8]}
37... Kxf6 {[%clk 0:00:31]} 38. Ne5 {[%clk 0:00:36.2]} 38... Bc8 {[%clk
0:00:20.6]} 39. g5+ {[%clk 0:00:35]} 39... Ke6 {[%clk 0:00:18.5]} 40. h5 {[%clk
0:00:33.6]} 40... gxh5 {[%clk 0:00:08.1]} 41. Bf5+ {[%clk 0:00:33.6]} 1-0

[Event "Late-Titled-Tuesday-Blitz-March-26-2024"]
[Site "Chess.com"]
[Date "2024.03.26"]
[Round "3"]
[White "xasid81"]
[Black "ViIIagra"]
[Result "0-1"]
[WhiteElo "2613"]
[BlackElo "2882"]
[TimeControl "180+1"]
[EndTime "14:29:44 PDT"]
[Termination "ViIIagra won by resignation"]

1. Nf3 {[%clk 0:03:00.9]} 1... d6 {[%clk 0:03:00.9]} 2. e4 {[%clk 0:03:00.4]}
2... a6 {[%clk 0:03:01.1]} 3. d4 {[%clk 0:03:00.4]} 3... Nf6 {[%clk 0:02:59.4]}
4. Bd3 {[%clk 0:02:57]} 4... g6 {[%clk 0:02:59.4]} 5. h3 {[%clk 0:02:56.7]} 5...
Bg7 {[%clk 0:02:59.9]} 6. O-O {[%clk 0:02:57]} 6... O-O {[%clk 0:03:00.4]} 7.
Re1 {[%clk 0:02:56.1]} 7... c5 {[%clk 0:03:00.2]} 8. dxc5 {[%clk 0:02:53.2]}
8... dxc5 {[%clk 0:03:00.4]} 9. Nc3 {[%clk 0:02:53.4]} 9... Nc6 {[%clk
0:03:00.5]} 10. Be3 {[%clk 0:02:50.1]} 10... Nd4 {[%clk 0:02:55.5]} 11. e5
{[%clk 0:02:42.5]} 11... Nd5 {[%clk 0:02:38.9]} 12. Nxd4 {[%clk 0:02:27.2]}
12... Nxe3 {[%clk 0:02:37.3]} 13. fxe3 {[%clk 0:02:16.6]} 13... cxd4 {[%clk
0:02:36.9]} 14. exd4 {[%clk 0:02:10.6]} 14... Qxd4+ {[%clk 0:02:20.1]} 15. Kh1
{[%clk 0:02:10.4]} 15... Bxe5 {[%clk 0:02:20.3]} 16. Qe2 {[%clk 0:01:59.2]}
16... Bf6 {[%clk 0:02:13.3]} 17. Rad1 {[%clk 0:01:54.2]} 17... Qc5 {[%clk
0:01:51.3]} 18. Ne4 {[%clk 0:01:50.2]} 18... Qa5 {[%clk 0:01:51.1]} 19. Nxf6+
{[%clk 0:01:43.2]} 19... exf6 {[%clk 0:01:52]} 20. Be4 {[%clk 0:01:35.5]} 20...
Re8 {[%clk 0:01:45.2]} 21. Qf2 {[%clk 0:01:20.5]} 21... f5 {[%clk 0:01:38.8]}
22. Bd5 {[%clk 0:01:17.3]} 22... Rxe1+ {[%clk 0:01:38.3]} 23. Qxe1 {[%clk
0:01:18.2]} 23... Qxe1+ {[%clk 0:01:37.6]} 24. Rxe1 {[%clk 0:01:19.1]} 24... Kf8
{[%clk 0:01:38.1]} 25. Re3 {[%clk 0:01:16.7]} 25... Rb8 {[%clk 0:01:34]} 26. Rc3
{[%clk 0:01:14.8]} 26... Ke7 {[%clk 0:01:30.9]} 27. Kg1 {[%clk 0:01:03.5]} 27...
b5 {[%clk 0:01:18.1]} 28. Rc6 {[%clk 0:00:47.5]} 28... a5 {[%clk 0:01:11.6]} 29.
Kf2 {[%clk 0:00:43.4]} 29... h6 {[%clk 0:01:02.2]} 30. Ke3 {[%clk 0:00:40.6]}
30... Be6 {[%clk 0:01:00.7]} 31. Bxe6 {[%clk 0:00:36.8]} 31... fxe6 {[%clk
0:01:01.6]} 32. Ra6 {[%clk 0:00:32.6]} 32... a4 {[%clk 0:01:01]} 33. Ra5 {[%clk
0:00:23.3]} 33... g5 {[%clk 0:00:58.8]} 34. Kd4 {[%clk 0:00:21.7]} 34... f4
{[%clk 0:00:40.2]} 35. Ke5 {[%clk 0:00:18.8]} 35... Kf7 {[%clk 0:00:30.9]} 36.
Ra7+ {[%clk 0:00:16.9]} 36... Kg6 {[%clk 0:00:31.3]} 37. Ra6 {[%clk 0:00:17.5]}
37... Rc8 {[%clk 0:00:29.9]} 38. Rxe6+ {[%clk 0:00:17.1]} 38... Kh5 {[%clk
0:00:30.5]} 39. Rb6 {[%clk 0:00:17.1]} 39... Rxc2 {[%clk 0:00:30.1]} 40. Rxb5
{[%clk 0:00:17]} 40... Rxg2 {[%clk 0:00:30.6]} 41. b4 {[%clk 0:00:14.9]} 41...
Rxa2 {[%clk 0:00:29]} 42. Ra5 {[%clk 0:00:15.2]} 42... f3 {[%clk 0:00:28.1]} 43.
Ke4 {[%clk 0:00:15.7]} 43... f2 {[%clk 0:00:28.2]} 44. Rf5 {[%clk 0:00:15.9]}
44... Rb2 {[%clk 0:00:28.7]} 45. Ke3 {[%clk 0:00:14.8]} 45... a3 {[%clk
0:00:29.4]} 46. b5 {[%clk 0:00:14.2]} 46... a2 {[%clk 0:00:29.5]} 0-1